bitfinex/quotes_BTCUSD_20251031
["timestamp","ask_amount","ask_price","bid_price","bid_amount"]
[1761924206581,3.29000737,110780.0,110770.0,0.00048]
[1761924207013,3.29700737,110780.0,110770.0,0.00148]
[1761924207245,2.81711106,110780.0,110770.0,0.00148]
[1761924207552,3.29600737,110780.0,110770.0,0.00148]
[1761924208832,3.29500737,110780.0,110770.0,0.00148]
[1761924209249,3.29600737,110780.0,110770.0,0.00148]
[1761924209463,3.29800737,110780.0,110770.0,0.00148]
[1761924209674,3.10696004,110780.0,110770.0,0.00148]
[1761924209885,3.29046405,110780.0,110770.0,0.00148]
[1761924211556,3.28946405,110780.0,110770.0,0.00148]
[1761924211768,3.30791405,110780.0,110770.0,0.00148]
[1761924212626,0.730407,110780.0,110770.0,0.02009]
[1761924212849,0.71349703,110780.0,110770.0,0.00148]
[1761924213056,0.73094703,110780.0,110770.0,0.00148]
[1761924213259,0.74785823,110780.0,110770.0,0.00148]
[1761924213459,0.77704051,110780.0,110770.0,0.00048]
[1761924213584,0.86385952,110780.0,110770.0,0.00048]
[1761924213785,0.75759051,110780.0,110770.0,0.00548]
[1761924213998,0.75759051,110780.0,110770.0,0.02409]
[1761924213999,0.68736703,110780.0,110770.0,0.02409]
[1761924214213,0.18899298,110780.0,110770.0,0.04548]
[1761924214505,0.68501929,110780.0,110770.0,0.02209]
[1761924215176,0.66788929,110780.0,110770.0,0.04848]
[1761924215388,0.68501929,110780.0,110770.0,0.00348]
[1761924215898,0.69463289,110770.0,110760.0,0.0004]
[1761924216134,2.78861822,110770.0,110760.0,0.0004]
[1761924216357,0.76913703,110770.0,110760.0,0.0004]
[1761924216578,0.71550475,110770.0,110760.0,0.01901]
[1761924216804,0.23760844,110770.0,110760.0,0.01901]
[1761924217039,0.77651612,110770.0,110760.0,0.0004]
[1761924217282,0.77013876,110770.0,110760.0,0.0054]
[1761924217773,0.77981196,110770.0,110760.0,0.0054]
[1761924217993,0.23982666,110770.0,110760.0,0.02401]
[1761924218220,0.71772297,110770.0,110760.0,0.02401]
[1761924218886,0.71772297,110770.0,110760.0,0.0004]
[1761924219110,0.83444969,110770.0,110760.0,0.0014]
[1761924219315,0.87063197,110770.0,110760.0,0.0014]
[1761924219515,0.89012039,110770.0,110760.0,0.0014]
[1761924219743,0.88812039,110770.0,110760.0,0.0004]
[1761924219949,0.89012039,110770.0,110760.0,0.0054]
[1761924220377,0.88912039,110770.0,110760.0,0.0004]
[1761924220797,0.89112039,110770.0,110760.0,0.0014]
[1761924221828,0.89012039,110770.0,110760.0,0.0014]
[1761924222036,0.89112039,110770.0,110760.0,0.0014]
[1761924223770,0.89112247,110770.0,110760.0,0.0014]
[1761924227241,0.80130346,110770.0,110760.0,0.0014]
[1761924228914,0.80130457,110770.0,110760.0,0.0014]
[1761924230935,0.80121429,110770.0,110760.0,0.0014]
[1761924232348,2.80121429,110770.0,110760.0,0.0014]
[1761924232565,3.63604212,110770.0,110760.0,0.0014]
[1761924232773,3.69758392,110770.0,110760.0,0.0014]
[1761924232997,3.22010761,110770.0,110760.0,0.0014]
[1761924233623,3.1302886,110770.0,110760.0,0.0014]
[1761924234057,3.13129577,110770.0,110760.0,0.0014]
[1761924234878,3.13029577,110770.0,110760.0,0.0014]
[1761924235083,3.13129577,110770.0,110760.0,0.0014]
[1761924235292,3.13029577,110770.0,110760.0,0.0014]
[1761924235504,3.49476264,110770.0,110760.0,0.0014]
[1761924235675,3.49376264,110770.0,110760.0,0.0014]
[1761924235882,3.58358165,110770.0,110760.0,0.0014]
[1761924236707,3.58458165,110770.0,110760.0,0.0014]
[1761924236918,3.58358165,110770.0,110760.0,0.0014]
[1761924237549,3.58458165,110770.0,110760.0,0.0014]
[1761924238963,1.47631264,110770.0,110760.0,0.0014]
[1761924239162,1.47632076,110770.0,110760.0,0.02013]
[1761924239365,1.05554567,110770.0,110760.0,0.0014]
[1761924239779,1.14578468,110770.0,110760.0,0.0014]
[1761924240783,1.05596567,110770.0,110760.0,0.0014]
[1761924241239,3.05596567,110770.0,110760.0,0.0014]
[1761924241440,3.47655376,110770.0,110760.0,0.0014]
[1761924241652,3.05596567,110770.0,110760.0,0.0014]
[1761924242347,3.05696567,110770.0,110760.0,0.0014]
[1761924242556,3.56737277,110770.0,110760.0,0.0014]
[1761924244124,3.39792906,110760.0,110750.0,0.0004]
[1761924244376,3.44366519,110760.0,110750.0,0.0004]
[1761924244582,3.44466519,110760.0,110750.0,0.0004]
[1761924244988,3.44366519,110760.0,110750.0,0.0004]
[1761924245187,3.5344842,110760.0,110750.0,0.0034]
[1761924245405,0.21674832,110720.0,110710.0,1e-08]
[1761924245633,3.01393869,110720.0,110710.0,1e-08]
[1761924245937,0.21674832,110720.0,110710.0,0.03148001]
[1761924246215,0.21674832,110720.0,110710.0,0.05708001]
[1761924246216,0.63733641,110720.0,110710.0,0.05708001]
[1761924246427,0.21674832,110720.0,110710.0,0.05708001]
[1761924246654,0.63733641,110720.0,110710.0,0.05756319]
[1761924247317,0.21674832,110720.0,110710.0,0.05756319]
[1761924247807,0.63975641,110720.0,110710.0,0.03996319]
[1761924248033,0.72179547,110720.0,110710.0,0.03996319]
[1761924248488,0.63933641,110720.0,110710.0,0.03996319]
[1761924248732,0.63933641,110720.0,110710.0,0.06556319]
[1761924249603,0.63933641,110720.0,110710.0,0.03996319]
[1761924252129,0.63933641,110720.0,110710.0,0.02123319]
[1761924252361,2.55781648,110730.0,110720.0,0.36066359]
[1761924252591,3.48781167,110730.0,110720.0,0.36066359]
[1761924253387,3.48881167,110730.0,110720.0,0.36066359]
[1761924253633,3.49081167,110730.0,110720.0,0.36666359]
[1761924253888,3.39999266,110730.0,110720.0,0.36666359]
[1761924254059,3.39799266,110730.0,110720.0,0.36066359]
[1761924254295,2.55881648,110730.0,110720.0,0.36266359]
[1761924254484,3.40099266,110730.0,110720.0,0.36266359]
[1761924255609,3.49181167,110730.0,110720.0,0.36266359]
[1761924256025,3.49081167,110730.0,110720.0,0.36266359]
[1761924256659,3.49181167,110730.0,110720.0,0.36266359]
[1761924257156,3.49081167,110730.0,110720.0,0.36266359]
[1761924257321,3.49181167,110730.0,110720.0,0.36266359]
[1761924257531,3.49081167,110730.0,110720.0,0.36266359]
[1761924257777,3.49081167,110730.0,110710.0,1e-08]
[1761924257778,0.03611249,110720.0,110710.0,1e-08]
[1761924257968,0.03611249,110720.0,110690.0,1e-08]
[1761924257969,2.52066847,110700.0,110690.0,1e-08]
[1761924258174,3.39850919,110700.0,110690.0,1e-08]
[1761924259319,3.29806711,110700.0,110690.0,1e-08]
[1761924259733,3.32528007,110700.0,110690.0,1e-08]
[1761924259942,3.41509908,110700.0,110690.0,1e-08]
[1761924260146,3.41809908,110700.0,110690.0,0.00600001]
[1761924260355,3.48509373,110700.0,110690.0,0.00600001]
[1761924260563,3.52992248,110700.0,110690.0,0.00600001]
[1761924260982,3.53092248,110700.0,110690.0,0.00600001]
[1761924261617,3.43471487,110700.0,110690.0,0.00600001]
[1761924263009,3.43571487,110700.0,110690.0,0.00600001]
[1761924263347,3.43471487,110700.0,110690.0,0.00600001]
[1761924264083,3.50141497,110700.0,110690.0,0.00600001]
[1761924264326,3.51159497,110700.0,110690.0,0.00600001]
[1761924264644,3.51259497,110700.0,110690.0,0.00600001]
[1761924265334,3.51159497,110700.0,110690.0,0.00600001]
[1761924265521,0.18070112,110680.0,110670.0,0.0004]
[1761924265730,0.24277469,110680.0,110670.0,0.0452]
[1761924265947,0.24277469,110680.0,110670.0,0.06475]
[1761924266838,0.24477469,110680.0,110670.0,0.07575]
[1761924267261,0.25408446,110680.0,110670.0,0.07575]
[1761924269105,0.25408446,110680.0,110670.0,0.04528]
[1761924269320,0.25408446,110680.0,110670.0,0.07575]
[1761924270080,0.002,110680.0,110670.0,0.25646744]
[1761924270699,0.18270112,110680.0,110670.0,0.25646744]
[1761924270931,0.18270112,110680.0,110670.0,0.07575]
[1761924271336,0.18270112,110680.0,110670.0,0.25646744]
[1761924271547,0.1995521,110680.0,110670.0,0.07575]
[1761924272315,0.24266585,110680.0,110670.0,0.04528]
[1761924272520,0.25899231,110680.0,110670.0,0.04528]
[1761924273227,0.25390991,110680.0,110670.0,0.07575]
[1761924273437,0.24472886,110680.0,110670.0,0.07575]
[1761924273850,0.24472886,110680.0,110670.0,0.07291712]
[1761924274483,0.1995597,110680.0,110670.0,0.07291712]
[1761924274693,0.01885858,110680.0,110670.0,0.25363456]
[1761924274916,0.1995597,110680.0,110670.0,0.25363456]
[1761924275936,0.1995597,110680.0,110670.0,0.07291712]
[1761924276169,0.20799362,110680.0,110670.0,0.07291712]
[1761924276363,0.21551362,110680.0,110670.0,0.04244712]
[1761924276793,0.26068278,110680.0,110670.0,0.02289712]
[1761924277028,0.26068278,110680.0,110670.0,0.04488]
[1761924277246,0.25316278,110680.0,110670.0,0.07535]
[1761924277658,0.26068278,110680.0,110670.0,0.04488]
[1761924278531,0.26068569,110680.0,110670.0,0.04488]
[1761924279543,0.25316569,110680.0,110670.0,0.07535]
[1761924279739,0.25942569,110680.0,110670.0,0.04488]
[1761924279948,0.25316569,110680.0,110670.0,0.04488]
[1761924280142,0.25942569,110680.0,110670.0,0.04488]
[1761924282290,0.68061726,110680.0,110670.0,0.04488]
[1761924282504,0.7000763,110680.0,110670.0,0.04488]
[1761924282688,0.27262473,110680.0,110670.0,0.07406]
[1761924283531,0.27888473,110680.0,110670.0,0.04488]
[1761924283716,0.27262473,110680.0,110670.0,0.04488]
[1761924283888,0.27262473,110680.0,110670.0,0.07151041]
[1761924284707,0.22745557,110680.0,110670.0,0.07151041]
[1761924284943,0.20799653,110680.0,110670.0,0.07151041]
[1761924285641,0.22747869,110680.0,110670.0,0.07151041]
[1761924285854,0.27890785,110680.0,110670.0,0.04233041]
[1761924286272,0.27264785,110680.0,110670.0,0.07151041]
[1761924287003,0.34316615,110680.0,110670.0,0.07151041]
[1761924287181,0.04677757,110680.0,110670.0,0.25222785]
[1761924287394,0.02729541,110680.0,110670.0,0.25222785]
[1761924287617,0.02729541,110680.0,110670.0,0.67341942]
[1761924288230,0.20799653,110680.0,110670.0,0.25222785]
[1761924289210,0.22751305,110680.0,110670.0,0.07151041]
[1761924289583,0.27894221,110680.0,110670.0,0.04233041]
[1761924289993,0.27268221,110680.0,110670.0,0.07151041]
[1761924291785,0.06468568,110680.0,110670.0,0.07151041]
[1761924292004,0.18070112,110680.0,110670.0,0.07151041]
[1761924293938,0.18070112,110680.0,110670.0,0.06921578]
[1761924294349,0.18070112,110680.0,110670.0,0.04003578]
[1761924294552,0.18070112,110680.0,110670.0,0.06921578]
[1761924298596,0.18070112,110680.0,110670.0,0.24993322]
[1761924298798,0.18070112,110680.0,110670.0,0.06921578]
[1761924300268,0.18696112,110680.0,110670.0,0.04003578]
[1761924300475,0.22567818,110680.0,110670.0,0.00615578]
[1761924300648,0.77513638,110680.0,110670.0,0.00615578]
[1761924301032,2.52071744,110670.0,110660.0,0.00325014]
[1761924301231,3.06744876,110670.0,110660.0,0.00325014]
[1761924301454,3.15726777,110670.0,110660.0,0.00325014]
[1761924301656,3.15826777,110670.0,110660.0,0.00325014]
[1761924301858,3.18261459,110670.0,110660.0,0.00325014]
[1761924302200,3.18161459,110670.0,110660.0,0.00325014]
[1761924302330,3.18261459,110670.0,110660.0,0.00325014]
[1761924302537,3.18161459,110670.0,110660.0,0.00325014]
[1761924302970,3.18161459,110670.0,110660.0,0.00625014]
[1761924302971,3.18361459,110670.0,110660.0,0.00625014]
[1761924303597,3.18161459,110670.0,110660.0,0.00325014]
[1761924303811,3.18161459,110670.0,110660.0,0.00118497]
[1761924303957,3.21403909,110670.0,110660.0,0.00318497]
[1761924304171,2.73652657,110670.0,110660.0,0.00318497]
[1761924304381,3.21503909,110670.0,110660.0,0.00318497]
[1761924304611,3.21603909,110670.0,110660.0,0.00318497]
[1761924305018,3.21503909,110670.0,110660.0,0.00318497]
[1761924305296,3.21603909,110670.0,110660.0,0.00318497]
[1761924305643,3.21503909,110670.0,110660.0,0.00318497]
[1761924305848,3.21603909,110670.0,110660.0,0.00318497]
[1761924306437,2.73652657,110670.0,110660.0,0.00318497]
[1761924306626,3.21503909,110670.0,110660.0,0.00318497]
[1761924306826,3.21603909,110670.0,110660.0,0.00318497]
[1761924307053,3.21503909,110670.0,110660.0,0.00318497]
[1761924307255,3.21603909,110670.0,110660.0,0.00318497]
[1761924307681,3.28500811,110670.0,110660.0,0.00318497]
[1761924309624,3.28400811,110670.0,110660.0,0.00318497]
[1761924310306,2.80549559,110670.0,110660.0,0.00318497]
[1761924310564,3.28400811,110670.0,110660.0,0.00318497]
[1761924310782,3.28500811,110670.0,110660.0,0.00318497]
[1761924311432,3.64940279,110670.0,110660.0,0.00318497]
[1761924311634,3.74452279,110670.0,110660.0,0.00318497]
[1761924311849,3.64940279,110670.0,110660.0,0.00318497]
[1761924312705,3.64940279,110670.0,110620.0,0.65425174]
[1761924312909,0.18078278,110630.0,110620.0,0.63069118]
[1761924313311,0.18078278,110630.0,110620.0,0.64989118]
[1761924313546,0.18078278,110630.0,110620.0,0.65076906]
[1761924313755,0.18078278,110630.0,110620.0,0.04851633]
[1761924314181,0.18078278,110630.0,110620.0,0.22945991]
[1761924314392,0.18078278,110630.0,110620.0,0.65091351]
[1761924314594,0.18078278,110630.0,110620.0,0.22945991]
[1761924314808,0.18078278,110630.0,110620.0,0.65091351]
[1761924315462,0.20532278,110630.0,110620.0,0.02022233]
[1761924315676,0.18587278,110630.0,110620.0,0.04777233]
[1761924315882,0.18587278,110630.0,110620.0,0.22857146]
[1761924315883,0.18887278,110630.0,110620.0,0.22857146]
[1761924316096,0.18378278,110630.0,110620.0,0.22857146]
[1761924316312,0.18378278,110630.0,110620.0,0.65002506]
[1761924316521,0.18378278,110630.0,110620.0,0.22857146]
[1761924316733,0.18378278,110630.0,110620.0,0.04777233]
[1761924317169,0.19342061,110630.0,110620.0,0.04777233]
[1761924317371,0.19342061,110630.0,110620.0,0.22857146]
[1761924317576,0.21796061,110630.0,110620.0,0.02022233]
[1761924317983,0.19851061,110630.0,110620.0,0.22857146]
[1761924318664,0.19551061,110630.0,110620.0,0.22857146]
[1761924318873,0.18378278,110630.0,110620.0,0.65002506]
[1761924319080,0.003,110630.0,110620.0,0.65002506]
[1761924319277,0.18378278,110630.0,110620.0,0.65002506]
[1761924319712,0.18378278,110630.0,110620.0,0.22857146]
[1761924319909,0.18378278,110630.0,110620.0,0.65002506]
[1761924320112,0.18378278,110630.0,110620.0,0.22857146]
[1761924320255,0.18378278,110630.0,110620.0,0.65002506]
[1761924321684,0.24357716,110630.0,110620.0,0.00102233]
[1761924321929,0.68390076,110630.0,110620.0,0.00102233]
[1761924322841,0.68090076,110630.0,110620.0,0.00102233]
[1761924323581,0.73865007,110630.0,110620.0,0.00102233]
[1761924324019,0.74165007,110630.0,110620.0,0.00102233]
[1761924324909,0.26244716,110630.0,110620.0,0.00102233]
[1761924325348,0.74165007,110630.0,110620.0,0.00102233]
[1761924325982,0.26244716,110630.0,110620.0,0.00102233]
[1761924326180,0.74165007,110630.0,110620.0,0.00102233]
[1761924327117,0.26244716,110630.0,110620.0,0.00102233]
[1761924327349,0.74165007,110630.0,110620.0,0.00102233]
[1761924329394,2.74165007,110630.0,110620.0,0.00102233]
[1761924330026,3.32775007,110630.0,110620.0,0.00102233]
[1761924330730,2.84854716,110630.0,110620.0,0.00102233]
[1761924331549,3.34468779,110630.0,110620.0,0.00102233]
[1761924335953,2.86548488,110630.0,110620.0,0.00102233]
[1761924336173,3.34468779,110630.0,110620.0,0.00102233]
[1761924337014,3.38087007,110630.0,110620.0,0.00102233]
[1761924337216,3.40039119,110630.0,110620.0,0.00102233]
[1761924337434,3.42573801,110630.0,110620.0,0.00102233]
[1761924337861,3.42473801,110630.0,110620.0,0.00102233]
[1761924338054,3.43321274,110630.0,110620.0,0.00102233]
[1761924339319,3.43421274,110630.0,110620.0,0.00102233]
[1761924339599,0.18084817,110590.0,110580.0,0.01378]
[1761924339733,0.19355817,110590.0,110580.0,4.793e-05]
[1761924339925,0.19355817,110590.0,110580.0,0.04598793]
[1761924339926,0.18084817,110590.0,110580.0,0.04598793]
[1761924340325,0.18084817,110590.0,110580.0,0.22685246]
[1761924340524,0.18083182,110600.0,110580.0,0.22685246]
[1761924340733,0.18083182,110600.0,110590.0,0.04594]
[1761924340925,0.22601343,110610.0,110590.0,0.22678817]
[1761924341306,0.24295107,110610.0,110600.0,0.22677182]
[1761924341512,0.24295107,110610.0,110600.0,0.04594]
[1761924341702,0.24318343,110610.0,110600.0,0.04594]
[1761924341903,0.26011709,110610.0,110600.0,0.01811]
[1761924342330,0.18083182,110600.0,110590.0,0.02783]
[1761924342776,0.18083182,110600.0,110590.0,0.0432]
[1761924342985,0.18083182,110600.0,110590.0,0.22404817]
[1761924343188,0.19773182,110600.0,110590.0,0.01837]
[1761924343368,0.18083182,110600.0,110590.0,0.19921817]
[1761924343593,0.18383182,110600.0,110590.0,0.19921817]
[1761924344783,0.18383182,110600.0,110590.0,0.22496817]
[1761924345434,0.18383182,110600.0,110590.0,0.04412]
[1761924345784,0.18383182,110600.0,110590.0,0.22496817]
[1761924346681,0.18383182,110600.0,110590.0,0.04412]
[1761924346957,0.18383182,110600.0,110590.0,0.22496817]
[1761924347164,0.18383182,110600.0,110590.0,0.04412]
[1761924347351,0.20073182,110600.0,110590.0,0.01837]
[1761924347719,0.23923752,110600.0,110590.0,0.01837]
[1761924347907,0.20073182,110600.0,110590.0,0.01837]
[1761924349683,0.18084817,110590.0,110580.0,0.18995212]
[1761924349903,0.18383182,110600.0,110590.0,0.04412]
[1761924350131,0.18383182,110600.0,110590.0,0.01837]
[1761924350332,0.18084817,110590.0,110580.0,0.62837546]
[1761924350602,0.19355817,110590.0,110580.0,0.20666246]
[1761924350816,0.21045817,110590.0,110580.0,0.01841793]
[1761924350960,0.21045817,110590.0,110580.0,0.19928246]
[1761924351368,0.19355817,110590.0,110580.0,0.22503246]
[1761924351777,0.18384817,110590.0,110580.0,0.22791082]
[1761924351970,0.003,110590.0,110580.0,0.22791082]
[1761924352188,0.003,110590.0,110580.0,0.64962382]
[1761924352409,0.003,110590.0,110580.0,1.07133682]
[1761924353370,0.003,110590.0,110580.0,0.64962382]
[1761924353584,0.18384817,110590.0,110580.0,0.04704629]
[1761924354030,0.33726672,110590.0,110580.0,0.02129629]
[1761924354459,0.77914972,110590.0,110580.0,0.00292629]
[1761924355976,0.23362817,110590.0,110580.0,0.00292629]
[1761924356192,0.65534117,110590.0,110580.0,0.00292629]
[1761924356416,0.70051033,110590.0,110580.0,0.00292629]
[1761924356831,0.27879733,110590.0,110580.0,0.00292629]
[1761924356969,0.70051033,110590.0,110580.0,0.00292629]
[1761924357177,0.79032934,110590.0,110580.0,0.00292629]
[1761924357769,0.80726401,110590.0,110580.0,0.00292629]
[1761924359419,0.84344629,110590.0,110580.0,0.00292629]
[1761924359634,0.84044629,110590.0,110580.0,0.00092629]
[1761924359828,2.84044629,110590.0,110580.0,0.00192629]
[1761924360032,2.86195218,110590.0,110580.0,0.00192629]
[1761924360236,0.18089725,110560.0,110550.0,0.22587408]
[1761924360467,0.18089725,110560.0,110540.0,0.0004]
[1761924360468,0.18091361,110550.0,110540.0,0.0004]
[1761924360822,0.21993801,110550.0,110540.0,0.01877]
[1761924361040,0.71437017,110550.0,110540.0,0.0004]
[1761924361243,0.29265717,110550.0,110540.0,0.0004]
[1761924361475,0.26510717,110550.0,110540.0,0.01877]
[1761924361679,0.26510717,110550.0,110540.0,0.0004]
[1761924362308,0.29265717,110550.0,110540.0,0.0004]
[1761924363353,0.29565717,110550.0,110540.0,0.0004]
[1761924364274,0.71783293,110550.0,110540.0,0.0004]
[1761924364504,0.80765194,110550.0,110540.0,0.0004]
[1761924365156,0.7074716,110550.0,110540.0,0.0004]
[1761924366006,0.28529584,110550.0,110540.0,0.0004]
[1761924366210,0.25774584,110550.0,110540.0,0.01877]
[1761924366432,0.25774584,110550.0,110540.0,0.04539883]
[1761924366660,0.25041762,110550.0,110540.0,0.04539883]
[1761924366876,0.003,110550.0,110540.0,0.64850457]
[1761924367517,0.003,110550.0,110540.0,0.96818029]
[1761924369922,0.003,110550.0,110540.0,1.05953172]
[1761924370772,0.003,110550.0,110540.0,1.06908998]
[1761924370983,0.00014436,110560.0,110550.0,0.18091361]
[1761924371212,0.00014436,110560.0,110550.0,0.99856645]
[1761924371413,0.00014436,110560.0,110550.0,1.01731643]
[1761924371677,0.00014436,110560.0,110550.0,1.02731642]
[1761924372098,0.00014436,110560.0,110550.0,1.01731643]
[1761924372325,0.00014436,110560.0,110550.0,0.98113415]
[1761924372566,0.00014436,110560.0,110550.0,0.98313415]
[1761924373019,0.00014436,110560.0,110550.0,1.01931643]
[1761924374207,0.00014436,110560.0,110550.0,1.02531643]
[1761924374413,0.00314436,110560.0,110550.0,1.03731642]
[1761924375921,0.00314436,110560.0,110550.0,1.00113414]
[1761924376608,0.00314436,110560.0,110550.0,1.03731642]
[1761924377008,0.00314436,110560.0,110550.0,1.06448675]
[1761924377962,0.00314436,110560.0,110550.0,1.07448674]
[1761924378164,0.00314436,110560.0,110550.0,1.07248674]
[1761924380042,1e-08,110560.0,110550.0,1.07248674]
[1761924386569,1e-08,110560.0,110550.0,1.06248675]
[1761924386746,1e-08,110560.0,110550.0,1.07248674]
[1761924387005,1e-08,110560.0,110550.0,1.06248675]
[1761924387231,1e-08,110560.0,110550.0,1.05248676]
[1761924387445,1e-08,110560.0,110550.0,0.274453]
[1761924387658,1e-08,110560.0,110550.0,1.01630448]
[1761924389152,1e-08,110560.0,110550.0,0.274453]
[1761924389375,1e-08,110560.0,110550.0,0.6964102]
[1761924391216,1e-08,110560.0,110550.0,1.15454968]
[1761924391959,1e-08,110560.0,110550.0,1.1183674]
[1761924393531,1e-08,110560.0,110550.0,1.01604933]
[1761924401471,1e-08,110560.0,110550.0,1.05223161]
[1761924402040,1e-08,110560.0,110550.0,1.81582792]
[1761924402294,0.01418048,110610.0,110600.0,0.18083182]
[1761924402494,0.0001449,110610.0,110600.0,0.99090133]
[1761924402712,0.0001449,110610.0,110600.0,0.97281815]
[1761924402849,0.0001449,110610.0,110600.0,0.99998161]
[1761924403064,0.0001449,110610.0,110600.0,1.03616389]
[1761924403508,0.0001449,110610.0,110600.0,1.04666836]
[1761924403941,0.0001449,110610.0,110600.0,1.05866835]
[1761924404151,0.0031449,110610.0,110600.0,1.06466835]
[1761924404554,0.0031449,110610.0,110600.0,1.06666835]
[1761924404782,0.0031449,110610.0,110600.0,1.06466835]
[1761924404998,0.0031449,110610.0,110600.0,1.06766835]
[1761924405415,0.0001449,110610.0,110600.0,1.05966835]
[1761924405622,0.0011449,110610.0,110600.0,1.06266835]
[1761924405830,0.0011449,110610.0,110600.0,1.05266836]
[1761924406310,0.0011449,110610.0,110600.0,1.04216389]
[1761924406566,0.0011449,110610.0,110600.0,0.30056756]
[1761924406779,0.0011449,110610.0,110600.0,1.04216389]
[1761924408037,0.0011449,110610.0,110600.0,1.00598161]
[1761924408874,0.0011449,110610.0,110600.0,0.26438528]
[1761924409125,0.0011449,110610.0,110600.0,1.00598161]
[1761924410421,0.0011449,110610.0,110600.0,1.04216389]
[1761924411735,0.0011449,110610.0,110600.0,1.00598161]
[1761924413933,0.0011449,110610.0,110600.0,0.26438528]
[1761924414857,0.0011449,110610.0,110600.0,0.23722182]
[1761924415077,0.0001449,110610.0,110600.0,0.23422182]
[1761924415294,0.0021449,110610.0,110600.0,0.23722182]
[1761924415911,0.0021449,110610.0,110600.0,0.97581815]
[1761924416119,0.0021449,110610.0,110600.0,0.97681815]
[1761924416605,0.0021449,110610.0,110600.0,0.23522182]
[1761924417020,0.18296037,110610.0,110600.0,0.23522182]
[1761924417668,0.0021449,110610.0,110600.0,0.23522182]
[1761924418179,0.18296037,110610.0,110600.0,0.23522182]
[1761924418839,0.0021449,110610.0,110600.0,0.23522182]
[1761924419042,0.18296037,110610.0,110600.0,0.23522182]
[1761924419251,0.16569445,110620.0,110600.0,0.23522182]
[1761924419463,0.18081547,110610.0,110600.0,0.23522182]
[1761924419677,0.19773547,110610.0,110600.0,0.21078182]
[1761924419882,0.20288547,110610.0,110600.0,0.21078182]
[1761924420095,0.20288547,110610.0,110600.0,0.02895]
[1761924420939,0.18081547,110610.0,110600.0,0.21078182]
[1761924421160,0.21086361,110620.0,110600.0,0.23222182]
[1761924421392,0.18279913,110620.0,110610.0,0.05464]
[1761924421605,0.18279913,110620.0,110610.0,0.23545547]
[1761924421828,0.18079913,110620.0,110610.0,0.23545547]
[1761924422257,0.18079913,110620.0,110610.0,0.05464]
[1761924422494,0.19277323,110630.0,110610.0,0.23545547]
[1761924422700,0.18078323,110630.0,110620.0,0.04172]
[1761924422870,0.18078323,110630.0,110620.0,0.22251913]
[1761924423324,0.18078323,110630.0,110620.0,0.04172]
[1761924423762,0.18178323,110630.0,110620.0,0.04172]
[1761924423977,0.2310866,110640.0,110620.0,0.22251913]
[1761924424189,0.2310866,110640.0,110630.0,0.0302]
[1761924424421,0.2480066,110640.0,110630.0,0.0302]
[1761924425278,0.2540066,110640.0,110630.0,0.0292]
[1761924425710,0.2480066,110640.0,110630.0,0.0292]
[1761924425933,0.2490066,110640.0,110630.0,0.01192]
[1761924426144,0.2530066,110640.0,110630.0,0.01392]
[1761924426361,0.2530066,110640.0,110630.0,0.0312]
[1761924427037,0.2360866,110640.0,110630.0,0.05564]
[1761924427237,0.18576744,110640.0,110630.0,0.05564]
[1761924427373,0.18576744,110640.0,110630.0,0.23642278]
[1761924427990,0.18576744,110640.0,110630.0,0.05564]
[1761924428232,0.2478566,110640.0,110630.0,0.0312]
[1761924428665,0.2309366,110640.0,110630.0,0.05564]
[1761924429510,0.2478566,110640.0,110630.0,0.0312]
[1761924430652,0.2309366,110640.0,110630.0,0.0312]
[1761924430857,0.2309366,110640.0,110630.0,0.05564]
[1761924431287,0.2478566,110640.0,110630.0,0.0312]
[1761924431725,0.2309366,110640.0,110630.0,0.0312]
[1761924431927,0.2309366,110640.0,110630.0,0.05564]
[1761924432320,0.2476966,110640.0,110630.0,0.0312]
[1761924432779,0.2309356,110640.0,110630.0,0.21198278]
[1761924432993,0.2309356,110640.0,110630.0,0.23606278]
[1761924433209,0.2309356,110640.0,110630.0,0.05528]
[1761924433444,0.005,110640.0,110630.0,0.23606278]
[1761924433658,0.2309356,110640.0,110630.0,0.23606278]
[1761924434081,0.2309356,110640.0,110630.0,0.05528]
[1761924434227,0.18576644,110640.0,110630.0,0.23606278]
[1761924434642,0.2309356,110640.0,110630.0,0.23606278]
[1761924436418,0.005,110640.0,110630.0,0.71502124]
[1761924437652,0.18073407,110660.0,110650.0,0.18075011]
[1761924437868,0.18087894,110660.0,110650.0,0.68783857]
[1761924438065,0.00014487,110660.0,110650.0,0.71191857]
[1761924439017,0.00014487,110660.0,110650.0,0.71291857]
[1761924440374,0.00314487,110660.0,110650.0,0.75110085]
[1761924440587,0.00314487,110660.0,110650.0,0.76159502]
[1761924440801,0.00314487,110660.0,110650.0,0.75959502]
[1761924441020,0.00014487,110660.0,110650.0,0.75959502]
[1761924441242,0.00214487,110660.0,110650.0,0.76359502]
[1761924441458,1e-08,110660.0,110650.0,0.82276417]
[1761924441669,1e-08,110660.0,110650.0,0.84990802]
[1761924441879,1e-08,110660.0,110650.0,0.82741386]
[1761924442096,1e-08,110660.0,110650.0,0.80027001]
[1761924442319,1e-08,110660.0,110650.0,0.71691857]
[1761924442530,1e-08,110660.0,110650.0,0.72091857]
[1761924442981,0.1893584,110680.0,110660.0,0.18072191]
[1761924443199,0.1893584,110680.0,110670.0,0.02814]
[1761924443427,0.1893584,110680.0,110670.0,0.05225]
[1761924443871,0.2047884,110680.0,110670.0,0.02814]
[1761924444147,0.18071744,110670.0,110660.0,0.02511]
[1761924444358,0.18071744,110670.0,110660.0,0.001]
[1761924444573,0.18071744,110670.0,110660.0,0.01594]
[1761924444797,0.18071744,110670.0,110660.0,0.04005]
[1761924445230,0.20628744,110670.0,110660.0,0.01594]
[1761924446037,0.19085744,110670.0,110660.0,0.01594]
[1761924446461,0.19785744,110670.0,110660.0,0.01694]
[1761924447450,0.21328744,110670.0,110660.0,0.01694]
[1761924450477,0.21328744,110670.0,110660.0,0.001]
[1761924450903,0.23719744,110670.0,110660.0,0.001]
[1761924451115,0.7161559,110670.0,110660.0,0.001]
[1761924451974,0.23719744,110670.0,110660.0,0.001]
[1761924452181,0.7161559,110670.0,110660.0,0.001]
[1761924453241,0.18075011,110650.0,110640.0,0.02411]
[1761924453454,0.18075011,110650.0,110640.0,0.22096131]
[1761924453654,0.18075011,110650.0,110640.0,0.04019487]
[1761924454059,0.18075011,110650.0,110640.0,0.22096131]
[1761924454262,0.18075011,110650.0,110640.0,0.04019487]
[1761924454440,0.18775011,110650.0,110640.0,0.04219487]
[1761924455695,0.18775011,110650.0,110640.0,0.22296131]
[1761924456275,0.18775011,110650.0,110640.0,0.04219487]
[1761924456652,0.21115011,110650.0,110640.0,0.01808487]
[1761924457060,0.23506011,110650.0,110640.0,0.00214487]
[1761924457258,0.21115011,110650.0,110640.0,0.00214487]
[1761924457463,0.21115011,110650.0,110640.0,0.01808487]
[1761924458502,0.21115011,110650.0,110640.0,0.04219487]